lending/lending_fUSD_20260206
["ID","MTS","AMOUNT","RATE_DAILY","PERIOD"]
[404655811,1770386336194,10000.01,0.00010776,2]
[404655812,1770386336217,10000.01,0.00010776,2]
[404655813,1770386336240,7216.8714358,0.00010776,2]
[404655815,1770386343594,150.0,0.00010848,2]
[404655816,1770386343972,150.0,0.00010848,2]
[404655817,1770386346976,860.8342089,0.00010776,2]
[404655818,1770386350440,8839.1757911,0.00010776,2]
[404655819,1770386350466,10000.01,0.00010776,2]
[404655820,1770386350493,10000.01,0.00010776,2]
[404655823,1770386389923,215.43575566,0.00010676,2]
[404655824,1770386401580,1200.0,0.00010775,2]
[404655825,1770386402416,150.0,0.00010775,2]
[404655826,1770386402730,300.0,0.00010775,2]
[404655827,1770386402979,300.0,0.00010775,2]
[404655829,1770386408191,1489.77632008,0.00010676,2]
[404655836,1770386436196,250.32059025,0.00010766,2]
[404655857,1770386477228,169.94259942,0.00010775,2]
[404655858,1770386477259,405.24463349,0.00010775,2]
[404655859,1770386477309,160.15389906,0.00010775,2]
[404655860,1770386477367,359.13620204,0.00010676,2]
[404655861,1770386477393,214.75327056,0.00010676,2]
[404655862,1770386477439,500.0,0.00010775,2]
[404655863,1770386479926,500.0,0.00010775,2]
[404655864,1770386479991,500.0,0.00010775,2]
[404655865,1770386480044,500.0,0.00010775,2]
[404655866,1770386480087,398.54127312,0.00010775,2]
[404655867,1770386480828,203.66327165,0.00010676,2]
[404655874,1770386492806,1743.354,0.0001056,2]
[404655875,1770386492862,180.867,0.0001056,2]
[404655876,1770386494772,258.83118467,0.00010676,2]
[404655877,1770386494796,5000.01,0.00010676,2]
[404655878,1770386494821,1536.65881533,0.00010676,2]
[404655882,1770386510260,215.43575566,0.00010676,2]
[404655883,1770386512554,220.90478594,0.00010676,2]
[404655884,1770386518847,3027.01064307,0.00010676,2]
[404655885,1770386518870,4927.04435693,0.00010676,2]
[404655907,1770386528402,72.96564307,0.00010676,2]
[404655908,1770386528425,920.21857031,0.00010676,2]
[404655912,1770386542912,200.0,0.00010748,2]
[404655913,1770386547092,1337.759484,0.00010722,2]
[404655915,1770386562359,1880.0,0.00044082,120]
[404655916,1770386582134,150.0,0.00010775,2]
[404655917,1770386583043,300.0,0.00010775,2]
[404655919,1770386604677,2092.03194569,0.00010676,2]
[404655920,1770386604700,4636.26835431,0.00010676,2]
[404655921,1770386607751,363.74164569,0.00010676,2]
[404655922,1770386607772,641.511727,0.00010676,2]
[404655923,1770386607880,1200.0,0.00010775,2]
[404655924,1770386626914,447.942787,0.00044083,120]
[404655925,1770386637132,577.94638869,0.00010676,2]
[404655928,1770386648651,818.4887596,0.00010676,2]
[404655929,1770386649927,500.0,0.00010676,2]
[404655933,1770386656328,5000.01,0.00010676,2]
[404655934,1770386656349,5000.01,0.00010676,2]
[404655935,1770386656369,5000.01,0.00010676,2]
[404655936,1770386656395,10000.01,0.00010676,2]
[404655937,1770386656422,8301.6412,0.00010676,2]
[404655938,1770386657253,1524.8,0.00044083,120]
[404655939,1770386670791,1698.3688,0.00010676,2]
[404655940,1770386670823,10000.01,0.00010676,2]
[404655941,1770386671061,10000.01,0.00010676,2]
[404655942,1770386671101,10000.01,0.00010676,2]
[404655943,1770386671143,10000.01,0.00010676,2]
[404655944,1770386671173,5000.01,0.00010676,2]
[404655945,1770386671205,5000.01,0.00010676,2]
[404655946,1770386671234,5000.01,0.00010676,2]
[404655947,1770386671270,10000.01,0.00010676,2]
[404655948,1770386671311,10000.01,0.00010676,2]
[404655950,1770386701451,1200.0,0.00010675,2]
[404655951,1770386701716,300.0,0.00010675,2]
[404655953,1770386711572,290.0,0.00035616,120]
[404655956,1770386738024,670.16891512,0.00010576,2]
[404655966,1770386748571,299.95117144,0.00010576,2]
[404655968,1770386762095,150.0,0.00010675,2]
[404655969,1770386764128,300.0,0.00010675,2]
[404655970,1770386768928,926.06553916,0.00010576,2]
[404655972,1770386788036,156.30592186,0.00010648,2]
[404655973,1770386792258,633.67124345,0.00010675,2]
[404655974,1770386793181,210.94903035,0.00010675,2]
[404655975,1770386798086,152.89817862,0.00010576,2]
[404655976,1770386798109,98.92300824,0.00010576,2]
[404655977,1770386821563,300.0,0.00010675,2]
[404655978,1770386821930,600.0,0.000105,3]
[404655979,1770386824026,1300.0,0.000106,3]
[404655980,1770386826135,2000.0,0.000107,3]
[404655981,1770386828222,2700.0,0.000108,3]
[404655982,1770386830316,3300.0,0.000109,3]
[404655983,1770386853643,258.6,0.00010676,2]
[404655984,1770386868426,446.77927674,0.00010576,2]
[404655985,1770386870272,-874.61378888,0.00010676,2]
[404655986,1770386870414,-5000.01,0.00010676,2]
[404655987,1770386870578,-5000.01,0.00010676,2]
[404655988,1770386870706,-5000.01,0.00010676,2]
[404655989,1770386870848,-5000.01,0.00010676,2]
[404655990,1770386871011,-5000.01,0.00010676,2]
[404655991,1770386871124,-5000.01,0.00010676,2]
[404655992,1770386871327,-5000.01,0.00010676,2]
[404655993,1770386872884,-5000.01,0.00010676,2]
[404655994,1770386875834,-5000.01,0.00010676,2]
[404655995,1770386875943,-5000.01,0.00010676,2]
[404655996,1770386876063,-5000.01,0.00010676,2]
[404655997,1770386876183,-5000.01,0.00010676,2]
[404655998,1770386876303,-5000.01,0.00010676,2]
[404655999,1770386876428,-5000.01,0.00010676,2]
[404656000,1770386882395,300.0,0.00010675,2]
[404656002,1770386887535,547.895691,7.945e-05,2]
[404656003,1770386896115,617.37702612,0.00010576,2]
[404656004,1770386907169,1413.3123,0.00010576,2]
[404656005,1770386937083,50000.0,0.0004411,120]
[404656006,1770386941809,50000.0,0.0004411,120]
[404656007,1770386942254,150.0,0.00010675,2]
[404656008,1770386942765,50000.0,0.0004411,120]
[404656009,1770386943867,50000.0,0.0004411,120]
[404656010,1770386945081,50000.0,0.0004411,120]
[404656011,1770386945692,50000.0,0.0004411,120]
[404656015,1770386979867,50000.0,0.0004411,120]
[404656016,1770386980715,50000.0,0.0004411,120]
[404656017,1770386981577,50000.0,0.0004411,120]
[404656018,1770386990203,50699.99999989,0.0004411,120]
[404656019,1770386991628,538.0,0.000106,2]
[404656020,1770386993296,160.0,0.00035616,120]
[404656021,1770386998918,297.85285116,0.00010576,2]
[404656022,1770387001385,1200.0,0.00010675,2]
[404656023,1770387001430,300.0,0.00010675,2]
[404656024,1770387005720,738.0,0.00010658,2]
[404656025,1770387012876,166.8803935,0.00010666,2]
[404656026,1770387012935,166.8803935,0.00010666,2]
[404656027,1770387015440,150.0,0.00010648,2]
[404656028,1770387016778,411.58468408,0.00010576,2]
[404656029,1770387020940,158.08422888,0.00010576,2]
[404656030,1770387024459,2397.36315502,0.00010576,2]
[404656031,1770387024485,102.63684498,0.00010576,2]
[404656044,1770387031396,-871.0,0.00010676,2]
[404656045,1770387031470,-17972.2688566,0.00010676,2]
[404656046,1770387031482,-832.33893487,0.00010676,2]
[404656047,1770387031497,-495.74682973,0.00010676,2]
[404656048,1770387031533,-1164.57560884,0.00010676,2]
[404656049,1770387031544,-4035.0,0.00010676,2]
[404656050,1770387031555,-63957.36646996,0.00010676,2]
[404656051,1770387031565,-6728.3003,0.00010676,2]
[404656052,1770387031574,-495.3761,0.00010676,2]
[404656053,1770387031584,-88299.24361618,0.00010676,2]
[404656054,1770387031595,-7466.65267996,0.00010676,2]
[404656055,1770387031607,-13153.30838434,0.00010676,2]
[404656057,1770387031618,-1146.3438152,0.00010676,2]
[404656067,1770387037459,-2887.61334948,0.00010676,2]
[404656068,1770387037472,-6728.37818209,0.00010676,2]
[404656069,1770387037483,-694.46353124,0.00010676,2]
[404656084,1770387039655,-4294.05191312,0.00010676,2]
[404656085,1770387039728,-3375329.94452839,0.00010676,2]
[404656086,1770387039742,-300.0,0.00010676,2]
[404656087,1770387039752,-388.11482382,0.00010676,2]
[404656088,1770387039762,-296.45489972,0.00010676,2]
[404656089,1770387039771,-237.0,0.00010676,2]
[404656090,1770387039781,-151.0,0.00010776,2]
[404656091,1770387039791,-151.0,0.00010776,2]
[404656092,1770387039801,-151.0,0.00010776,2]
[404656093,1770387039812,-151.0,0.00010776,2]
[404656094,1770387039822,-151.0,0.00010776,2]
[404656095,1770387039832,-151.0,0.00010776,2]
[404656096,1770387039841,-151.0,0.00010776,2]
[404656097,1770387039851,-151.0,0.00010776,2]
[404656098,1770387039861,-151.0,0.00010776,2]
[404656099,1770387039873,-151.0,0.00010776,2]
[404656100,1770387039883,-151.0,0.00010776,2]
[404656101,1770387039892,-151.0,0.00010776,2]
[404656102,1770387039901,-151.0,0.00010776,2]
[404656103,1770387039912,-151.0,0.00010776,2]
[404656104,1770387039922,-151.0,0.00010776,2]
[404656105,1770387039933,-151.0,0.00010776,2]
[404656106,1770387039942,-151.0,0.00010776,2]
[404656107,1770387039952,-151.0,0.00010776,2]
[404656108,1770387039962,-151.0,0.00010776,2]
[404656109,1770387039972,-151.0,0.00010776,2]
[404656110,1770387039981,-151.0,0.00010776,2]
[404656112,1770387039991,-151.0,0.00010776,2]
[404656114,1770387040001,-151.0,0.00010776,2]
[404656116,1770387040010,-153.37287127,0.00010776,2]
[404656118,1770387040020,-151.0,0.00010776,2]
[404656120,1770387040029,-151.0,0.00010776,2]
[404656122,1770387040039,-151.0,0.00010776,2]
[404656124,1770387040048,-151.0,0.00010776,2]
[404656126,1770387040057,-151.0,0.00010776,2]
[404656128,1770387040067,-151.0,0.00010776,2]
[404656130,1770387040076,-151.0,0.00010776,2]
[404656132,1770387040085,-151.0,0.00010776,2]
[404656133,1770387040094,-151.0,0.00010776,2]
[404656135,1770387040104,-151.0,0.00010776,2]
[404656137,1770387040114,-151.0,0.00010776,2]
[404656139,1770387040123,-151.0,0.00010776,2]
[404656141,1770387040132,-151.0,0.00010776,2]
[404656143,1770387040141,-151.0,0.00010776,2]
[404656145,1770387040151,-151.0,0.00010776,2]
[404656147,1770387040160,-151.0,0.00010776,2]
[404656149,1770387040169,-500.0,0.00010867,2]
[404656150,1770387040180,-385141.9946,0.00010877,2]
[404656152,1770387040190,-1000.0,0.00010877,2]
[404656154,1770387040199,-2054.89239616,0.00010952,2]
[404656156,1770387040209,-150.0,0.00010959,2]
[404656158,1770387040219,-150.0,0.00010959,2]
[404656160,1770387040228,-500.0,0.00010959,2]
[404656162,1770387040237,-247.48,0.00011076,2]
[404656164,1770387040246,-23450.18988267,0.00011099,2]
[404656166,1770387040255,-10812.07503194,0.00011099,2]
[404656168,1770387040265,-4584.8,0.0001112,2]
[404656170,1770387040274,-500.0,0.00011141,2]
[404656172,1770387040283,-1910.41,0.00011155,2]
[404656174,1770387040292,-500.0,0.00011174,2]
[404656176,1770387040301,-8104.05,0.00011233,2]
[404656178,1770387040310,-500.0,0.00011415,2]
[404656180,1770387040319,-253.8647165,0.00011575,2]
[404656182,1770387040329,-166.66,0.00011591,2]
[404656184,1770387040338,-500.0,0.00011689,2]
[404656186,1770387040348,-255.0,0.0001171,2]
[404656188,1770387040357,-420.0,0.00011734,2]
[404656190,1770387040366,-1000.0,0.00011735,2]
[404656192,1770387040376,-1680.0,0.00011742,2]
[404656194,1770387040386,-250.0,0.00011743,2]
[404656196,1770387040395,-300.0,0.00011743,2]
[404656197,1770387040403,-195.0,0.00011743,2]
[404656199,1770387040413,-250.0,0.00011743,2]
[404656201,1770387040423,-241.00287784,0.00011743,2]
[404656203,1770387040436,-300.0,0.00011743,2]
[404656205,1770387040445,-195.0,0.00011743,2]
[404656207,1770387040455,-300.0,0.00011743,2]
[404656209,1770387040464,-195.0,0.00011743,2]
[404656210,1770387040473,-300.0,0.00011743,2]
[404656211,1770387040483,-195.0,0.00011743,2]
[404656212,1770387040491,-732.89,0.00011854,2]
[404656213,1770387040500,-166.66,0.00011973,2]
[404656214,1770387040509,-300.0,0.00012,2]
[404656215,1770387040519,-47849.1378226,0.00012036,2]
[404656216,1770387040528,-504.56,0.00012055,2]
[404656217,1770387040537,-178.97,0.00012072,2]
[404656218,1770387040547,-200.0,0.00012245,2]
[404656219,1770387040557,-150.0,0.00012245,2]
[404656220,1770387040567,-150.0,0.000123,2]
[404656221,1770387040576,-150.0,0.00012355,2]
[404656222,1770387040586,-166.66,0.00012356,2]
[404656223,1770387040595,-237.07978777,0.00012389,2]
[404656224,1770387040604,-150.1715906,0.00012389,2]
[404656225,1770387040613,-150.0538992,0.00012389,2]
[404656226,1770387040623,-150.0,0.00012389,2]
[404656227,1770387040632,-150.0,0.00012389,2]
[404656228,1770387040641,-150.0,0.00012389,2]
[404656229,1770387040651,-150.0,0.00012389,2]
[404656230,1770387040660,-150.0,0.00012389,2]
[404656231,1770387040669,-187.62081611,0.00012409,2]
[404656232,1770387040680,-150.0,0.00012444,2]
[404656233,1770387040689,-150.0,0.00012444,2]
[404656234,1770387040698,-150.0,0.00012444,2]
[404656235,1770387040707,-200.0,0.00012499,2]
[404656236,1770387040717,-200.0,0.00012499,2]
[404656237,1770387040728,-201.00110128,0.00012499,2]
[404656238,1770387040742,-166.66,0.00012738,2]
[404656239,1770387040751,-10676.5857853,0.00012769,2]
[404656240,1770387040761,-433.0,0.00012842,2]
[404656241,1770387040771,-510.0,0.00012899,2]
[404656242,1770387040780,-671.0,0.00012917,2]
[404656243,1770387040790,-2382.2682961,0.00012932,2]
[404656244,1770387040799,-166.66,0.00013121,2]
[404656245,1770387040811,-1000.0,0.00013202,2]
[404656246,1770387040820,-250.0,0.00013314,2]
[404656247,1770387040829,-3240.0,0.00013425,2]
[404656248,1770387040838,-166.66,0.00013504,2]
[404656249,1770387040847,-522.96240732,0.00013698,2]
[404656250,1770387040856,-500.0,0.00013698,2]
[404656251,1770387040865,-500.0,0.00013698,2]
[404656252,1770387040875,-500.0,0.00013698,2]
[404656253,1770387040884,-500.0,0.00013698,2]
[404656254,1770387040893,-500.0,0.00013698,2]
[404656255,1770387040902,-500.0,0.00013698,2]
[404656256,1770387040911,-500.0,0.00013698,2]
[404656257,1770387040920,-500.0,0.00013698,2]
[404656258,1770387040931,-500.0,0.00013698,2]
[404656259,1770387040940,-508.28,0.00013698,2]
[404656260,1770387040948,-500.0,0.00013698,2]
[404656261,1770387040958,-500.0,0.00013698,2]
[404656262,1770387040968,-500.0,0.00013698,2]
[404656263,1770387040976,-500.0,0.00013698,2]
[404656264,1770387040986,-500.0,0.00013698,2]
[404656265,1770387040995,-500.0,0.00013698,2]
[404656266,1770387041004,-500.0,0.00013698,2]
[404656267,1770387041014,-500.0,0.00013698,2]
[404656268,1770387041023,-500.0,0.00013698,2]
[404656269,1770387041033,-500.0,0.00013698,2]
[404656270,1770387041042,-500.0,0.00013698,2]
[404656271,1770387041051,-179.76637926,0.00013698,2]
[404656272,1770387041060,-500.0,0.00013698,2]
[404656273,1770387041069,-500.0,0.00013698,2]
[404656274,1770387041079,-500.0,0.00013698,2]
[404656275,1770387041088,-500.0,0.00013698,2]
[404656276,1770387041097,-500.0,0.00013698,2]
[404656277,1770387041107,-500.0,0.00013698,2]
[404656278,1770387041116,-500.0,0.00013698,2]
[404656279,1770387041126,-500.0,0.00013698,2]
[404656280,1770387041136,-500.0,0.00013698,2]
[404656281,1770387041145,-500.0,0.00013698,2]
[404656282,1770387041155,-500.0,0.00013698,2]
[404656283,1770387041164,-500.0,0.00013698,2]
[404656284,1770387041174,-500.0,0.00013698,2]
[404656285,1770387041184,-500.0,0.00013698,2]
[404656286,1770387041194,-500.0,0.00013698,2]
[404656287,1770387041204,-500.0,0.00013698,2]
[404656288,1770387041213,-500.0,0.00013698,2]
[404656289,1770387041223,-500.0,0.00013698,2]
[404656290,1770387041232,-500.0,0.00013698,2]
[404656291,1770387041242,-500.0,0.00013698,2]
[404656292,1770387041251,-500.0,0.00013698,2]
[404656293,1770387041260,-500.0,0.00013698,2]
[404656294,1770387041270,-500.0,0.00013698,2]
[404656295,1770387041279,-500.0,0.00013698,2]
[404656296,1770387041288,-500.0,0.00013698,2]
[404656297,1770387041297,-500.0,0.00013698,2]
[404656298,1770387041307,-500.0,0.00013698,2]
[404656299,1770387041316,-500.0,0.00013698,2]
[404656300,1770387041326,-500.0,0.00013698,2]
[404656301,1770387041335,-202.70654952,0.00013698,2]
[404656302,1770387041344,-500.0,0.00013698,2]
[404656303,1770387041354,-500.0,0.00013698,2]
[404656304,1770387041363,-245.91228722,0.00013698,2]
[404656305,1770387041372,-500.0,0.00013698,2]
[404656306,1770387041382,-500.0,0.00013698,2]
[404656307,1770387041392,-500.0,0.00013698,2]
[404656308,1770387041401,-500.0,0.00013698,2]
[404656309,1770387041411,-500.0,0.00013698,2]
[404656310,1770387041421,-500.0,0.00013698,2]
[404656311,1770387041431,-500.0,0.00013698,2]
[404656312,1770387041440,-500.0,0.00013698,2]
[404656313,1770387041449,-500.0,0.00013698,2]
[404656314,1770387041459,-500.0,0.00013698,2]
[404656315,1770387041468,-500.0,0.00013698,2]
[404656316,1770387041477,-449.78062316,0.00013698,2]
[404656317,1770387041487,-500.0,0.00013698,2]
[404656318,1770387041497,-500.0,0.00013698,2]
[404656319,1770387041506,-512.48294777,0.00013698,2]
[404656320,1770387041515,-623.46,0.00013698,2]
[404656321,1770387041525,-623.46,0.00013698,2]
[404656323,1770387041534,-623.46,0.00013698,2]
[404656324,1770387041543,-623.46,0.00013698,2]
[404656325,1770387041553,-623.46,0.00013698,2]
[404656326,1770387041563,-623.46,0.00013698,2]
[404656327,1770387041572,-623.46,0.00013698,2]
[404656328,1770387041581,-623.46,0.00013698,2]
[404656330,1770387041591,-623.46,0.00013698,2]
[404656332,1770387041600,-623.46,0.00013698,2]
[404656334,1770387041610,-623.46,0.00013698,2]
[404656336,1770387041619,-623.46,0.00013698,2]
[404656338,1770387041629,-623.46,0.00013698,2]
[404656340,1770387041638,-623.46,0.00013698,2]
[404656342,1770387041647,-623.46,0.00013698,2]
[404656344,1770387041657,-623.46,0.00013698,2]
[404656346,1770387041666,-500.0,0.00013698,2]
[404656348,1770387041676,-500.0,0.00013698,2]
[404656350,1770387041686,-500.0,0.00013698,2]
[404656352,1770387041695,-500.0,0.00013698,2]
[404656353,1770387041704,-500.0,0.00013698,2]
[404656354,1770387041714,-500.0,0.00013698,2]
[404656355,1770387041723,-500.0,0.00013698,2]
[404656356,1770387041736,-500.0,0.00013698,2]
[404656357,1770387041746,-500.0,0.00013698,2]
[404656358,1770387041756,-500.0,0.00013698,2]
[404656359,1770387041765,-500.0,0.00013698,2]
[404656360,1770387041775,-500.0,0.00013698,2]
[404656361,1770387041786,-500.0,0.00013698,2]
[404656362,1770387041796,-344.36366875,0.00013698,2]
[404656363,1770387041808,-500.0,0.00013698,2]
[404656364,1770387041818,-500.0,0.00013698,2]
[404656365,1770387041828,-500.0,0.00013698,2]
[404656366,1770387041837,-500.0,0.00013698,2]
[404656367,1770387041846,-567.19788397,0.00013698,2]
[404656368,1770387041856,-500.0,0.00013698,2]
[404656369,1770387041866,-500.0,0.00013698,2]
[404656370,1770387041876,-500.0,0.00013698,2]
[404656371,1770387041886,-500.0,0.00013698,2]
[404656372,1770387041896,-500.0,0.00013698,2]
[404656373,1770387041906,-500.0,0.00013698,2]
[404656374,1770387041915,-500.0,0.00013698,2]
[404656375,1770387041926,-343.52857332,0.00013698,2]
[404656376,1770387041938,-500.0,0.00013698,2]
[404656377,1770387041947,-500.0,0.00013698,2]
[404656378,1770387041956,-272.1278825,0.00013698,2]
[404656379,1770387041966,-500.0,0.00013698,2]
[404656380,1770387041975,-500.0,0.00013698,2]
[404656381,1770387041985,-500.0,0.00013698,2]
[404656382,1770387041998,-500.0,0.00013698,2]
[404656383,1770387042008,-500.0,0.00013698,2]
[404656384,1770387042017,-500.0,0.00013698,2]
[404656385,1770387042030,-500.0,0.00013698,2]
[404656386,1770387042041,-500.0,0.00013698,2]
[404656387,1770387042052,-500.0,0.00013698,2]
[404656388,1770387042063,-500.0,0.00013698,2]
[404656389,1770387042076,-500.0,0.00013698,2]
[404656390,1770387042088,-500.0,0.00013698,2]
[404656391,1770387042098,-500.0,0.00013698,2]
[404656392,1770387042110,-500.0,0.00013698,2]
[404656393,1770387042121,-500.0,0.00013698,2]
[404656394,1770387042132,-628.10981545,0.00013698,2]
[404656395,1770387042142,-500.0,0.00013698,2]
[404656396,1770387042152,-500.0,0.00013698,2]
[404656397,1770387042163,-500.0,0.00013698,2]
[404656398,1770387042173,-500.0,0.00013698,2]
[404656399,1770387042185,-500.0,0.00013698,2]
[404656400,1770387042196,-500.0,0.00013698,2]
[404656401,1770387042206,-500.0,0.00013698,2]
[404656402,1770387042217,-500.0,0.00013698,2]
[404656403,1770387042228,-500.0,0.00013698,2]
[404656404,1770387042239,-500.0,0.00013698,2]
[404656405,1770387042251,-500.0,0.00013698,2]
[404656406,1770387042261,-500.0,0.00013698,2]
[404656407,1770387042272,-500.0,0.00013698,2]
[404656408,1770387042282,-500.0,0.00013698,2]
[404656409,1770387042293,-500.0,0.00013698,2]
[404656410,1770387042303,-500.0,0.00013698,2]
[404656411,1770387042314,-500.0,0.00013698,2]
[404656412,1770387042325,-500.0,0.00013698,2]
[404656413,1770387042336,-500.0,0.00013698,2]
[404656414,1770387042346,-500.0,0.00013698,2]
[404656415,1770387042357,-500.0,0.00013698,2]
[404656416,1770387042367,-500.0,0.00013698,2]
[404656417,1770387042377,-500.0,0.00013698,2]
[404656418,1770387042388,-600.86,0.00013698,2]
[404656419,1770387042399,-4517.55,0.00013699,2]
[404656420,1770387042417,-1279.72,0.00013699,2]
[404656421,1770387042430,-421.14,0.000137,2]
[404656422,1770387042441,-421.14,0.000137,2]
[404656423,1770387042451,-421.14,0.000137,2]
[404656424,1770387042462,-421.14,0.000137,2]
[404656425,1770387042472,-421.14,0.000137,2]
[404656426,1770387042483,-5500.76,0.000137,2]
[404656427,1770387042493,-5500.76,0.000137,2]
[404656428,1770387042503,-150.0,0.00013999,2]
[404656429,1770387042513,-358.0,0.00014091,2]
[404656430,1770387042522,-2054.89239616,0.00014171,2]
[404656431,1770387042533,-10812.07503188,0.00014199,2]
[404656432,1770387042543,-23450.1898826,0.00014246,2]
[404656433,1770387042553,-1279.72,0.00014384,2]
[404656434,1770387042564,-150.24,0.00014392,2]
[404656435,1770387042575,-1000.0,0.00014669,2]
[404656436,1770387042585,-250.0,0.00015,2]
[404656437,1770387042595,-1279.72,0.00015068,2]
[404656438,1770387042606,-178.97,0.00015089,2]
[404656439,1770387042616,-9999.99,0.0001531,2]
[404656440,1770387042627,-999.99,0.0001531,2]
[404656441,1770387042638,-23559.75,0.0001531,2]
[404656442,1770387042649,-9999.99,0.0001531,2]
[404656443,1770387042659,-8627.75197169,0.0001531,2]
[404656444,1770387042676,-1372.23802831,0.0001531,2]
[404656445,1770387042688,-2006.11197169,0.0001531,2]
[404656446,1770387042701,-533.16070499,0.0001531,2]
[404656447,1770387042715,-471.639,0.0001531,2]
[404656448,1770387042742,-333.7159621,0.0001531,2]
[404656449,1770387042755,-6250.50891526,0.0001531,2]
[404656450,1770387042768,-8475.89742483,0.0001531,2]
[404656451,1770387042782,-346.9563856,0.0001531,2]
[404656452,1770387042800,-20597.01963553,0.0001531,2]
[404656453,1770387042810,-514.89,0.0001531,2]
[404656454,1770387042821,-6484.12,0.0001531,2]
[404656455,1770387042832,-299.99,0.0001531,2]
[404656456,1770387042842,-150.99,0.0001531,2]
[404656457,1770387042852,-3700.79,0.0001531,2]
[404656458,1770387042863,-1176.53,0.0001531,2]
[404656459,1770387042875,-2103.1,0.0001531,2]
[404656460,1770387042887,-1279.72,0.00015753,2]
[404656461,1770387042897,-2054.89239616,0.0001578,2]
[404656462,1770387042907,-623.46,0.00016115,2]
[404656463,1770387042917,-7862.88,0.00016116,2]
[404656464,1770387042928,-1000.0,0.00016136,2]
[404656465,1770387042939,-500.0,0.00016219,2]
[404656466,1770387042950,-296.45489969,0.00016227,2]
[404656467,1770387042961,-500.0,0.00016438,2]
[404656468,1770387042972,-500.0,0.00016438,2]
[404656469,1770387042983,-323.56765981,0.00016438,2]
[404656470,1770387042993,-801.49439566,0.00016438,2]
[404656471,1770387043003,-1279.72,0.00016438,2]
[404656472,1770387043014,-500.0,0.00016473,2]
[404656473,1770387043024,-150.25704323,0.00016473,2]
[404656474,1770387043034,-500.0,0.00016473,2]
[404656475,1770387043044,-511.12790579,0.00016473,2]
[404656476,1770387043055,-329.29524768,0.00016473,2]
[404656477,1770387043064,-500.0,0.00016473,2]
[404656478,1770387043076,-418.94756511,0.00016473,2]
[404656479,1770387043087,-732.89,0.00016595,2]
[404656480,1770387043100,-500.0,0.0001663,2]
[404656481,1770387043112,-165.85,0.00016712,2]
[404656482,1770387043124,-150.0,0.00016999,2]
[404656483,1770387043137,-300.0,0.00017,2]
[404656484,1770387043155,-1000.0,0.00017021,2]
[404656485,1770387043168,-1000.0,0.00017021,2]
[404656486,1770387043179,-1000.0,0.00017021,2]
[404656487,1770387043196,-2054.89239616,0.00017389,2]
[404656488,1770387043207,-1500.0,0.00017568,2]
[404656489,1770387043217,-1500.0,0.00017568,2]
[404656490,1770387043227,-1000.0,0.00017568,2]
[404656491,1770387043237,-1000.0,0.00017603,2]
[404656492,1770387043248,-10812.07503188,0.00017823,2]
[404656493,1770387043259,-500.0,0.000179,2]
[404656494,1770387043269,-23450.1898826,0.00017916,2]
[404656495,1770387043280,-500.0,0.00017973,2]
[404656496,1770387043291,-500.0,0.00017973,2]